Workbook

Sheet Type marques
A1: Observatoire des prix et des marges
A3: Produits de grande consommation – Grande distribution
F11: EXHAUSTIF | H11: MDD | J11: PPX
B12: ---EPICERIE | F12: -1.31 | H12: 0.29 | J12: 1.86
B13: ---LIQUIDES | F13: -0.35 | H13: 1.6 | J13: 2.65
B14: ---D.P.H. | F14: -1.93 | H14: -0.68 | J14: 1.06
B15: --P.G.C. | F15: -1.36 | H15: 0.24 | J15: 1.84
B16: --PRODUITS FRAIS L.S. | F16: -0.98 | H16: -0.01 | J16: 0.58
B17: -ALIMENTAIRE (PGC+FLS) | F17: -1.27 | H17: 0.15 | J17: 1.47
B18: -NON ALIMENTAIRE | F18: -1.55 | H18: -0.77 | J18: 0.82
B19: TOTAL GENERAL | F19: -1.28 | H19: 0.12 | J19: 1.44
B21: Exhaustifs : totalité de produits suivis

Sheet Historiq
A1: Observatoire des prix et des marges | Q1: Evolution de l'inflation (inflation annuelle 2003/2002, 2004/2003 etc.)
Q2: Total circuits - par type de marques, et du Hard-Discount (en exhaustif)
A3: Produits de grande consommation – Grande distribution
Q4: TOTAL GENERAL
R5: Exhaustifs | S5: MdD | T5: Premiers Prix | U5: Hard-Discounters | V5: MP HD
Q6: 2003-01-01 | R6: 2.23 | S6: 0.45 | T6: 1.02 | U6: -0.05 | V6: =+U6 -> -0.05 | W6: =+(R6+100)/100 -> 1.0223 | X6: =+(#REF!+100)/100 ->  | Y6: =+(S6+100)/100 -> 1.0045 | Z6: =+(T6+100)/100 -> 1.0102 | AA6: =+(U6+100)/100 -> 0.9995
Q7: février | R7: 2.52 | S7: 0.48 | T7: 1.02 | U7: 0.05 | V7: 0.05 | W7: 1.0252 | X7: =+(#REF!+100)/100 ->  | Y7: 1.0048 | Z7: 1.0102 | AA7: 1.0005
Q8: mars | R8: 2.82 | S8: 0.67 | T8: 1.18 | U8: -0.16 | V8: -0.16 | W8: 1.0282 | X8: =+(#REF!+100)/100 ->  | Y8: 1.0067 | Z8: 1.0118 | AA8: 0.9984
Q9: avril | R9: 3.06 | S9: 0.59 | T9: 1.46 | U9: -0.15 | V9: -0.15 | W9: 1.0306 | X9: =+(#REF!+100)/100 ->  | Y9: 1.0059 | Z9: 1.0146 | AA9: 0.9985
Q10: mai | R10: 3.02 | S10: 0.67 | T10: 1.15 | U10: -0.26 | V10: -0.26 | W10: 1.0302 | X10: =+(#REF!+100)/100 ->  | Y10: 1.0067 | Z10: 1.0115 | AA10: 0.9974
Q11: juin | R11: 2.9 | S11: 0.98 | T11: 0.99 | U11: -0.63 | V11: -0.63 | W11: 1.029 | X11: =+(#REF!+100)/100 ->  | Y11: 1.0098 | Z11: 1.0099 | AA11: 0.9937
Q12: sept. | R12: 2.12 | S12: 0.51 | T12: 0.39 | U12: -0.73 | V12: -0.73 | W12: 1.0212 | X12: =+(#REF!+100)/100 ->  | Y12: 1.0051 | Z12: 1.0039 | AA12: 0.9927
Q13: octobre | R13: 1.98 | S13: 0.45 | T13: -1.2 | U13: -0.48 | V13: -0.48 | W13: 1.0198 | X13: =+(#REF!+100)/100 ->  | Y13: 1.0045 | Z13: 0.988 | AA13: 0.9952
Q14: nov. | R14: 1.92 | S14: 0.36 | T14: -0.6 | U14: -1.02 | V14: -1.02 | W14: 1.0192 | X14: =+(#REF!+100)/100 ->  | Y14: 1.0036 | Z14: 0.994 | AA14: 0.9898
Q15: déc* | R15: 1.9 | S15: 0.215 | T15: -0.85 | U15: -1.09 | V15: -1.09 | W15: 1.019 | X15: =+(#REF!+100)/100 ->  | Y15: 1.00215 | Z15: 0.9915 | AA15: 0.9891
Q16: 2004-01-01 | R16: 1.88 | S16: 0.07 | T16: -1.1 | U16: -1.16 | V16: -1.16 | W16: 1.0188 | X16: =+(#REF!+100)/100 ->  | Y16: 1.0007 | Z16: 0.989 | AA16: 0.9884
Q17: février | R17: 1.78 | S17: 0.01 | T17: -1.43 | U17: -0.84 | V17: -0.84 | W17: 1.0178 | X17: =+(#REF!+100)/100 ->  | Y17: 1.0001 | Z17: 0.9857 | AA17: 0.9916
Q18: mars | R18: 1.63 | S18: -0.27 | T18: -1.71 | U18: -0.75 | V18: -0.75 | W18: 1.0163 | X18: =+(#REF!+100)/100 ->  | Y18: 0.9973 | Z18: 0.9829 | AA18: 0.9925
Q19: avril | R19: 1.37 | S19: -0.46 | T19: -2.61 | U19: -0.95 | V19: -0.95 | W19: 1.0137 | X19: =+(#REF!+100)/100 ->  | Y19: 0.9954 | Z19: 0.9739 | AA19: 0.9905
Q20: mai | R20: 1.26 | S20: -0.57 | T20: -2.72 | U20: -1.03 | V20: -1.03 | W20: 1.0126 | X20: =+(#REF!+100)/100 ->  | Y20: 0.9943 | Z20: 0.9728 | AA20: 0.9897
Q21: juin | R21: 1.09 | S21: -0.74 | T21: -3.3 | U21: -1.12 | V21: -1.12 | W21: 1.0109 | X21: =+(#REF!+100)/100 ->  | Y21: 0.9926 | Z21: 0.967 | AA21: 0.9888
Q22: juill** | R22: 0.92 | S22: -0.9 | T22: -3.53 | U22: -1.12 | V22: -1.12 | W22: 1.0092 | X22: =+(#REF!+100)/100 ->  | Y22: 0.991 | Z22: 0.9647 | AA22: 0.9888
Q23: août** | R23: 0.58 | S23: -1.06 | T23: -3.76 | U23: -1.11 | V23: -1.11 | W23: 1.0058 | X23: =+(#REF!+100)/100 ->  | Y23: 0.9894 | Z23: 0.9624 | AA23: 0.9889
Q24: sept. | R24: -0.05 | S24: -1.29 | T24: -4.03 | U24: -1.11 | V24: -1.11 | W24: 0.9995 | X24: =+(#REF!+100)/100 ->  | Y24: 0.9871 | Z24: 0.9597 | AA24: 0.9889
Q25: oct | R25: -0.38 | S25: -1.66 | T25: -4.16 | U25: -1.15 | V25: -1.15 | W25: 0.9962 | X25: =+(#REF!+100)/100 ->  | Y25: 0.9834 | Z25: 0.9584 | AA25: 0.9885
Q26: nov | R26: -0.6 | S26: -1.82 | T26: -4.09 | U26: -1.42 | V26: -1.42 | W26: 0.994 | X26: =+(#REF!+100)/100 ->  | Y26: 0.9818 | Z26: 0.9591 | AA26: 0.9858
Q27: déc* | R27: -0.81 | S27: -2.03 | T27: -4.11 | U27: -1.53 | V27: -1.53 | W27: 0.9919 | X27: =+(#REF!+100)/100 ->  | Y27: 0.9797 | Z27: 0.9589 | AA27: 0.9847
Q28: 2005-01-01 | R28: -1.01 | S28: -2.26 | T28: -4.11 | U28: -1.63 | V28: -1.63 | W28: 0.9899 | X28: =+(#REF!+100)/100 ->  | Y28: 0.9774 | Z28: 0.9589 | AA28: 0.9837
Q29: février | R29: -1.17 | S29: -2.08 | T29: -4.09 | U29: -1.34 | V29: -1.34 | W29: 0.9883 | X29: =+(#REF!+100)/100 ->  | Y29: 0.9792 | Z29: 0.9591 | AA29: 0.9866
Q30: mars | R30: -1.33 | S30: -2.12 | T30: -3.86 | U30: -2.12 | V30: -2.12 | W30: 0.9867 | X30: =+(#REF!+100)/100 ->  | Y30: 0.9788 | Z30: 0.9614 | AA30: 0.9788
Q31: avril | R31: -1.34 | S31: -2.22 | T31: -3.28 | U31: -1.6 | V31: -1.6 | W31: 0.9866 | X31: =+(#REF!+100)/100 ->  | Y31: 0.9778 | Z31: 0.9672 | AA31: 0.984
Q32: mai | R32: -1.47 | S32: -2.49 | T32: -3.1 | U32: -1.58 | V32: -1.58 | W32: 0.9853 | X32: =+(#REF!+100)/100 ->  | Y32: 0.9751 | Z32: 0.969 | AA32: 0.9842
Q33: juin | R33: -1.52 | S33: -2.67 | T33: -2.91 | U33: -1.53 | V33: -1.53 | W33: 0.9848 | X33: =+(#REF!+100)/100 ->  | Y33: 0.9733 | Z33: 0.9709 | AA33: 0.9847
Q34: juillet** | R34: -1 | S34: -2.7 | T34: -2.4 | U34: -1.5 | V34: -1.5 | W34: 0.99 | X34: =+(#REF!+100)/100 ->  | Y34: 0.973 | Z34: 0.976 | AA34: 0.985
Q35: août** | R35: -1 | S35: -2.7 | T35: -2.4 | U35: -1.5 | V35: -1.5 | W35: 0.99 | X35: =+(#REF!+100)/100 ->  | Y35: 0.973 | Z35: 0.976 | AA35: 0.985
Q36: sept. | R36: -0.54 | S36: -2.67 | T36: -1.83 | U36: -1.52 | V36: -1.52 | W36: 0.9946 | X36: =+(#REF!+100)/100 ->  | Y36: 0.9733 | Z36: 0.9817 | AA36: 0.9848
Q37: oct. | R37: -0.15 | S37: -2.01 | T37: -1.88 | U37: -1.41 | V37: -1.41 | W37: 0.9985 | X37: =+(#REF!+100)/100 ->  | Y37: 0.9799 | Z37: 0.9812 | AA37: 0.9859
Q38: nov. | R38: -0.21 | S38: -2.47 | T38: -1.8 | U38: -1.12 | V38: =+U38 -> -1.12 | W38: =+(R38+100)/100 -> 0.9979 | X38: =+(#REF!+100)/100 ->  | Y38: =+(S38+100)/100 -> 0.9753 | Z38: =+(T38+100)/100 -> 0.982 | AA38: =+(U38+100)/100 -> 0.9888
Q39: déc.* | R39: -0.005 | S39: -2.405 | T39: -1.42 | U39: -0.93 | V39: -0.93 | W39: 0.99995 | X39: =+(#REF!+100)/100 ->  | Y39: 0.97595 | Z39: 0.9858 | AA39: 0.9907
Q40: 2006-01-01 | R40: 0.2 | S40: -2.34 | T40: -1.04 | U40: -0.74 | V40: -0.74 | W40: 1.002 | X40: =+(#REF!+100)/100 ->  | Y40: 0.9766 | Z40: 0.9896 | AA40: 0.9926
Q41: 2006-02-01 | R41: 0.24 | S41: -2.2 | T41: -0.88 | U41: -0.4 | V41: -0.4 | W41: 1.0024 | X41: =+(#REF!+100)/100 ->  | Y41: 0.978 | Z41: 0.9912 | AA41: 0.996
Q42: 2006-03-01 | R42: 0.41 | S42: -1.81 | T42: -0.65 | U42: -0.05 | V42: -0.05 | W42: 1.0041 | X42: =+(#REF!+100)/100 ->  | Y42: 0.9819 | Z42: 0.9935 | AA42: 0.9995
Q43: 2006-04-01 | R43: 0.39 | S43: -1.49 | T43: -0.34 | U43: -0.16 | V43: -0.16 | W43: 1.0039 | X43: =+(#REF!+100)/100 ->  | Y43: 0.9851 | Z43: 0.9966 | AA43: 0.9984
Q44: 2006-05-01 | R44: 0.41 | S44: -1.15 | T44: -0.14 | U44: -0.32 | V44: -0.32 | W44: 1.0041 | X44: =+(#REF!+100)/100 ->  | Y44: 0.9885 | Z44: 0.9986 | AA44: 0.9968
Q45: 2006-06-01 | R45: 0.2 | S45: -0.85 | T45: 0.05 | U45: -0.68 | V45: -0.68 | W45: 1.002 | X45: =+(#REF!+100)/100 ->  | Y45: 0.9915 | Z45: 1.0005 | AA45: 0.9932
Q46: 2006-07-01 | R46: 0.3375 | S46: -0.375 | T46: 0.3425 | U46: -0.39 | V46: -0.39 | W46: 1.003375 | X46: =+(#REF!+100)/100 ->  | Y46: 0.99625 | Z46: 1.003425 | AA46: 0.9961
Q47: 2006-08-01 | R47: 0.37 | S47: 0.25 | T47: 0.73 | U47: -0.28 | V47: -0.28 | W47: 1.0037 | X47: =+(#REF!+100)/100 ->  | Y47: 1.0025 | Z47: 1.0073 | AA47: 0.9972
Q48: 2006-09-01 | R48: 0.09 | S48: -0.21 | T48: 0.1 | U48: -0.31 | V48: -0.31 | W48: 1.0009 | X48: =+(#REF!+100)/100 ->  | Y48: 0.9979 | Z48: 1.001 | AA48: 0.9969
Q49: 2006-10-01 | R49: 0.15 | S49: 0.2 | T49: 0.57 | U49: 0.05 | V49: 0.05 | W49: 1.0015 | X49: =+(#REF!+100)/100 ->  | Y49: 1.002 | Z49: 1.0057 | AA49: 1.0005
Q50: 2006-11-01 | R50: 0.07 | S50: 0.36 | T50: 0.53 | U50: 0.52 | V50: 0.52 | W50: 1.0007 | X50: =+(#REF!+100)/100 ->  | Y50: 1.0036 | Z50: 1.0053 | AA50: 1.0052
Q51: déc.*-06 | R51: -0.045 | S51: 0.465 | T51: 0.78 | U51: 0.4 | V51: 0.4 | W51: 0.99955 | X51: =+(#REF!+100)/100 ->  | Y51: 1.00465 | Z51: 1.0078 | AA51: 1.004
Q52: 2007-01-01 | R52: -0.16 | S52: 0.57 | T52: 1.03 | U52: 0.28 | V52: 0.28 | W52: 0.9984 | X52: =+(#REF!+100)/100 ->  | Y52: 1.0057 | Z52: 1.0103 | AA52: 1.0028
Q53: fev-07 | R53: -0.44 | S53: 0.44 | T53: 0.95 | U53: 0.43 | V53: 0.43 | W53: 0.9956 | X53: =+(#REF!+100)/100 ->  | Y53: 1.0044 | Z53: 1.0095 | AA53: 1.0043
Q54: 2007-03-01 | R54: -0.1 | S54: 1.22 | T54: 1.28 | U54: 0.5 | V54: 0.5 | W54: 0.999 | X54: =+(#REF!+100)/100 ->  | Y54: 1.0122 | Z54: 1.0128 | AA54: 1.005
Q55: 2007-04-01 | R55: -0.74 | S55: 0.6 | T55: 0.88 | U55: -0.15 | V55: -0.15 | W55: 0.9926 | X55: =+(#REF!+100)/100 ->  | Y55: 1.006 | Z55: 1.0088 | AA55: 0.9985
Q56: 2007-05-01 | R56: -0.74 | S56: 0.91 | T56: 1.03 | U56: -0.13 | V56: -0.13 | W56: 0.9926 | X56: =+(#REF!+100)/100 ->  | Y56: 1.0091 | Z56: 1.0103 | AA56: 0.9987
Q57: 2007-06-01 | R57: -0.49 | S57: 1.11 | T57: 1.14 | U57: 0.48 | V57: 0.48 | W57: 0.9951 | X57: =+(#REF!+100)/100 ->  | Y57: 1.0111 | Z57: 1.0114 | AA57: 1.0048
Q58: 2007-07-01 | R58: -0.37 | S58: 1.39 | T58: 1.43 | U58: 0.68 | V58: 0.68 | W58: 0.9963 | X58: =+(#REF!+100)/100 ->  | Y58: 1.0139 | Z58: 1.0143 | AA58: 1.0068
Q59: 2007-08-01 | R59: -0.07 | S59: 1.9 | T59: 1.92 | U59: 1.29 | V59: 1.29 | W59: 0.9993 | X59: =+(#REF!+100)/100 ->  | Y59: 1.019 | Z59: 1.0192 | AA59: 1.0129
Q60: 2007-09-01 | R60: -0.09 | S60: 1.81 | T60: 2.26 | U60: 1.24 | V60: 1.24 | W60: 0.9991 | X60: =+(#REF!+100)/100 ->  | Y60: 1.0181 | Z60: 1.0226 | AA60: 1.0124
Q61: 2007-10-01 | R61: 0.07 | S61: 1.62 | T61: 2.01 | U61: 1.3 | V61: 1.3 | W61: 1.0007 | X61: =+(#REF!+100)/100 ->  | Y61: 1.0162 | Z61: 1.0201 | AA61: 1.013
Q62: 2007-11-01 | R62: 0.43 | S62: 1.98 | T62: 2.54 | U62: 0.35 | V62: 0.35 | W62: 1.0043 | X62: =+(#REF!+100)/100 ->  | Y62: 1.0198 | Z62: 1.0254 | AA62: 1.0035
Q63: 2007-12-01 | R63: 1.42 | S63: 2.63 | T63: 3.43 | U63: 2.05 | V63: 2.05 | W63: 1.0142 | X63: =+(#REF!+100)/100 ->  | Y63: 1.0263 | Z63: 1.0343 | AA63: 1.0205
Q64: 2008-01-01 | R64: 2.39 | S64: 3.1 | T64: 3.63 | U64: 3.76 | V64: 3.76 | W64: 1.0239 | X64: =+(#REF!+100)/100 ->  | Y64: 1.031 | Z64: 1.0363 | AA64: 1.0376
Q65: 2008-02-01 | R65: 3.3 | S65: 3.77 | T65: 4.55 | U65: 4.074762883 | V65: 4.074762883 | W65: 1.033 | X65: =+(#REF!+100)/100 ->  | Y65: 1.0377 | Z65: 1.0455 | AA65: 1.040747629
Q66: 2008-03-01 | R66: 3.55 | S66: 3.81 | T66: 4.86 | U66: 3.82 | V66: 3.82 | W66: 1.0355 | X66: =+(#REF!+100)/100 ->  | Y66: 1.0381 | Z66: 1.0486 | AA66: 1.0382
Q67: 2008-04-01 | R67: 3.67 | S67: 3.93 | T67: 5.2 | U67: 3.77 | V67: 3.77 | W67: 1.0367 | X67: =+(#REF!+100)/100 ->  | Y67: 1.0393 | Z67: 1.052 | AA67: 1.0377
Q68: 2008-05-01 | R68: 3.91 | S68: 3.8 | T68: 5.68 | U68: 3.79 | V68: 3.79 | W68: 1.0391 | X68: =+(#REF!+100)/100 ->  | Y68: 1.038 | Z68: 1.0568 | AA68: 1.0379
Q69: 2008-06-01 | R69: 3.86 | S69: 3.94 | T69: 6.06 | U69: 3.8 | V69: 4.1 | W69: 1.0386 | X69: =+(#REF!+100)/100 ->  | Y69: 1.0394 | Z69: 1.0606 | AA69: 1.038
Q70: 2008-07-01 | R70: 4.04 | S70: 4.2 | T70: 6.19 | U70: 4.96 | V70: 5.2 | W70: =+(R70+100)/100 -> 1.0404 | X70: =+(#REF!+100)/100 ->  | Y70: =+(S70+100)/100 -> 1.042 | Z70: =+(T70+100)/100 -> 1.0619 | AA70: =+(U70+100)/100 -> 1.0496
Q71: 2008-08-01 | R71: 4.03 | S71: 4.17 | T71: 6.48 | U71: 4.31 | V71: 4.61 | W71: 1.0403 | X71: =+(#REF!+100)/100 ->  | Y71: 1.0417 | Z71: 1.0648 | AA71: 1.0431
Q72: 2008-09-01 | R72: 4.12 | S72: 4.32 | T72: 6.68 | U72: 3.48 | V72: 4.72 | W72: 1.0412 | X72: =+(#REF!+100)/100 ->  | Y72: 1.0432 | Z72: 1.0668 | AA72: 1.0348
Q73: 2008-10-01 | R73: 4.04 | S73: 4.12 | T73: 6.54 | U73: 4.05 | V73: 5.13 | W73: 1.0404 | X73: =+(#REF!+100)/100 ->  | Y73: 1.0412 | Z73: 1.0654 | AA73: 1.0405
Q74: 2008-11-01 | R74: 3.98 | S74: 4.08 | T74: 6.48 | U74: 3.39 | V74: 4.97 | W74: 1.0398 | X74: =+(#REF!+100)/100 ->  | Y74: 1.0408 | Z74: 1.0648 | AA74: 1.0339
Q75: 2008-12-01 | R75: 3.06 | S75: 3.64 | T75: 6 | U75: 2.21 | V75: 3.19 | W75: 1.0306 | X75: =+(#REF!+100)/100 ->  | Y75: 1.0364 | Z75: 1.06 | AA75: 1.0221
Q76: 2009-01-01 | R76: 2.01 | S76: 2.58 | T76: 5.17 | U76: 1.71 | V76: 2.54 | W76: 1.0201 | X76: =+(#REF!+100)/100 ->  | Y76: 1.0258 | Z76: 1.0517 | AA76: 1.0171
Q77: 2009-02-01 | R77: 1.54 | S77: 1.91 | T77: 4.26 | U77: 1.28 | V77: 2.19 | W77: 1.0154 | X77: =+(#REF!+100)/100 ->  | Y77: 1.0191 | Z77: 1.0426 | AA77: 1.0128
Q78: 2009-03-01 | R78: 1.29 | S78: 1.83 | T78: 3.93 | U78: 0.84 | V78: 1.84 | W78: 1.0129 | X78: =+(#REF!+100)/100 ->  | Y78: 1.0183 | Z78: 1.0393 | AA78: 1.0084
Q79: 2009-04-01 | R79: 1.04 | S79: 1.53 | T79: 3.39 | U79: 1.51 | V79: 2.08 | W79: 1.0104 | X79: =+(#REF!+100)/100 ->  | Y79: 1.0153 | Z79: 1.0339 | AA79: 1.0151
Q80: 2009-05-01 | R80: 0.91 | S80: 1.19 | T80: 2.83 | U80: 1.42 | V80: 1.82 | W80: 1.0091 | X80: =+(#REF!+100)/100 ->  | Y80: 1.0119 | Z80: 1.0283 | AA80: 1.0142
Q81: 2009-06-01 | R81: 0.81 | S81: 1.11 | T81: 2.74 | U81: 0.76 | V81: 1.3 | W81: 1.0081 | X81: =+(#REF!+100)/100 ->  | Y81: 1.0111 | Z81: 1.0274 | AA81: 1.0076
Q82: 2009-07-01 | R82: 0.57 | S82: 0.63 | T82: 2.26 | U82: 0.79 | V82: 1.33 | W82: 1.0057 | X82: =+(#REF!+100)/100 ->  | Y82: 1.0063 | Z82: 1.0226 | AA82: 1.0079
Q83: 2009-08-01 | R83: 0.52 | S83: 0.36 | T83: 1.88 | U83: 0.61 | V83: 0.93 | W83: 1.0052 | X83: =+(#REF!+100)/100 ->  | Y83: 1.0036 | Z83: 1.0188 | AA83: 1.0061
Q84: 2009-09-01 | R84: 0.65 | S84: 0.19 | T84: 1.55 | U84: 0.31 | V84: 0.54 | W84: 1.0065 | X84: =+(#REF!+100)/100 ->  | Y84: 1.0019 | Z84: 1.0155 | AA84: 1.0031
Q85: 2009-10-01 | R85: 0.39 | S85: -0.21 | T85: 1.12 | U85: 0.38 | V85: 0.46 | W85: 1.0039 | X85: =+(#REF!+100)/100 ->  | Y85: 0.9979 | Z85: 1.0112 | AA85: 1.0038
Q86: 2009-11-01 | R86: 0.22 | S86: -0.62 | T86: 0.6 | U86: -0.03 | V86: 0.02 | W86: 1.0022 | X86: =+(#REF!+100)/100 ->  | Y86: 0.9938 | Z86: 1.006 | AA86: 0.9997
Q87: 2009-12-01 | R87: 0.06 | S87: -0.85 | T87: 0.13 | U87: 0.14 | V87: 0.07 | W87: 1.0006 | X87: =+(#REF!+100)/100 ->  | Y87: 0.9915 | Z87: 1.0013 | AA87: 1.0014
Q88: 2010-01-01 | R88: 0.11 | S88: -0.94 | T88: -0.24 | U88: -0.81 | V88: -0.85 | W88: 1.0011 | X88: =+(#REF!+100)/100 ->  | Y88: 0.9906 | Z88: 0.9976 | AA88: 0.9919
Q89: 2010-02-01 | R89: 0.17 | S89: -0.61 | T89: -0.14 | U89: -1.33 | V89: -1.383600256 | W89: 1.0017 | X89: =+(#REF!+100)/100 ->  | Y89: 0.9939 | Z89: 0.9986 | AA89: 0.9867
Q90: 2010-03-01 | R90: 0.29 | S90: -0.57 | T90: -0.35 | U90: -1.54 | V90: -1.65 | W90: 1.0029 | X90: =+(#REF!+100)/100 ->  | Y90: 0.9943 | Z90: 0.9965 | AA90: 0.9846
Q91: 2010-04-01 | R91: 0.18 | S91: -0.69 | T91: -0.85 | U91: -1.6 | V91: -1.73 | W91: 1.0018 | X91: =+(#REF!+100)/100 ->  | Y91: 0.9931 | Z91: 0.9915 | AA91: 0.984
Q92: 2010-05-01 | R92: 0.31 | S92: -0.81 | T92: -1.06 | U92: -1.53 | V92: -1.74 | W92: 1.0031 | X92: =+(#REF!+100)/100 ->  | Y92: 0.9919 | Z92: 0.9894 | AA92: 0.9847
Q93: 2010-06-01 | R93: -0.04 | S93: -1.09 | T93: -1.36 | U93: -1.57 | V93: -1.83 | W93: 0.9996 | X93: =+(#REF!+100)/100 ->  | Y93: 0.9891 | Z93: 0.9864 | AA93: 0.9843
Q94: 2010-07-01 | R94: -0.31 | S94: -1.44 | T94: -1.62 | U94: -1.94 | V94: -2.2 | W94: 0.9969 | X94: =+(#REF!+100)/100 ->  | Y94: 0.9856 | Z94: 0.9838 | AA94: 0.9806
Q95: 2010-08-01 | R95: -0.62 | S95: -1.53 | T95: -1.69 | U95: -1.94 | V95: -2.03 | W95: 0.9938 | X95: =+(#REF!+100)/100 ->  | Y95: 0.9847 | Z95: 0.9831 | AA95: 0.9806
Q96: 2010-09-01 | R96: -0.85 | S96: -1.68 | T96: -1.84 | U96: -2.05 | V96: -2.01 | W96: 0.9915 | X96: =+(#REF!+100)/100 ->  | Y96: 0.9832 | Z96: 0.9816 | AA96: 0.9795
Q97: 2010-10-01 | R97: -1.01 | S97: -1.64 | T97: -1.8 | U97: -2 | V97: -2.29 | W97: 0.9899 | X97: =+(#REF!+100)/100 ->  | Y97: 0.9836 | Z97: 0.982 | AA97: 0.98
Q98: 2010-11-01 | R98: -0.96 | S98: -1.59 | T98: -1.73 | U98: -1.16 | V98: =-1.21 -> -1.21 | W98: 0.9904 | X98: =+(#REF!+100)/100 ->  | Y98: 0.9841 | Z98: 0.9827 | AA98: 0.9884
Q99: 2010-12-01 | R99: -0.91 | S99: -1.6 | T99: -1.67 | U99: -0.14 | V99: -0.1097482973 | W99: 0.9909 | X99: =+(#REF!+100)/100 ->  | Y99: 0.984 | Z99: 0.9833 | AA99: 0.9986
Q100: 2011-01-01 | R100: -0.94 | S100: -1.28 | T100: -1.94 | U100: 1.15 | V100: 1.237057945 | W100: 0.9906 | X100: =+(#REF!+100)/100 ->  | Y100: 0.9872 | Z100: 0.9806 | AA100: 1.0115
Q101: 2011-02-01 | R101: -1.03 | S101: -1.27 | T101: -1.36 | U101: 1.7 | V101: 1.904967753 | W101: 0.9897 | X101: =+(#REF!+100)/100 ->  | Y101: 0.9873 | Z101: 0.9864 | AA101: 1.017
Q102: 2011-03-01 | R102: -0.53 | S102: -0.8 | T102: -0.97 | U102: 1.62 | V102: 1.826003532 | W102: =+(R102+100)/100 -> 0.9947 | X102: =+(#REF!+100)/100 ->  | Y102: =+(S102+100)/100 -> 0.992 | Z102: =+(T102+100)/100 -> 0.9903 | AA102: =+(U102+100)/100 -> 1.0162
Q103: 2011-04-01 | R103: 0.04 | S103: -0.14 | T103: -0.09 | U103: 2.03 | V103: 2.29563361 | W103: 1.0004 | X103: =+(#REF!+100)/100 ->  | Y103: 0.9986 | Z103: 0.9991 | AA103: 1.0203
Q104: 2011-05-01 | R104: 0.61 | S104: 0.86 | T104: 0.86 | U104: 3.28 | V104: 3.479224743 | W104: 1.0061 | X104: =+(#REF!+100)/100 ->  | Y104: 1.0086 | Z104: 1.0086 | AA104: 1.0328
Q105: 2011-06-01 | R105: 1.45 | S105: 2.35 | T105: 1.46 | U105: 3.9 | V105: 4.090351438 | W105: 1.0145 | X105: =+(#REF!+100)/100 ->  | Y105: 1.0235 | Z105: 1.0146 | AA105: 1.039
Q106: 2011-07-01 | R106: 1.84 | S106: 3.07 | T106: 1.85 | U106: 4.2175 | V106: 4.4175 | W106: 1.0184 | X106: =+(#REF!+100)/100 ->  | Y106: 1.0307 | Z106: 1.0185 | AA106: 1.042175
Q107: 2011-08-01 | R107: 1.98 | S107: 3.34 | T107: 2.03 | U107: 4.083125 | V107: 4.283125 | W107: 1.0198 | X107: =+(#REF!+100)/100 ->  | Y107: 1.0334 | Z107: 1.0203 | AA107: 1.04083125
Q108: 2011-09-01 | R108: 2.13 | S108: 3.81 | T108: 2.49 | U108: 6.02 | V108: 6.310419028 | W108: 1.0213 | X108: =+(#REF!+100)/100 ->  | Y108: 1.0381 | Z108: 1.0249 | AA108: 1.0602
Q109: 2011-10-01 | R109: 2.34 | S109: 4.19 | T109: 2.52 | U109: 6.21 | V109: 7.062869892 | W109: 1.0234 | X109: =+(#REF!+100)/100 ->  | Y109: 1.0419 | Z109: 1.0252 | AA109: 1.0621
Q110: 2011-11-01 | R110: 2.57 | S110: 4.57 | T110: 2.72 | U110: 6.39 | V110: 7.482594018 | W110: 1.0257 | X110: =+(#REF!+100)/100 ->  | Y110: 1.0457 | Z110: 1.0272 | AA110: 1.0639
Q111: 2011-12-01 | R111: 2.65 | S111: 4.75 | T111: 3.04 | U111: 6.76 | V111: 7.902914929 | W111: 1.0265 | X111: =+(#REF!+100)/100 ->  | Y111: 1.0475 | Z111: 1.0304 | AA111: 1.0676
Q112: 2012-01-01 | R112: 2.7 | S112: 4.88 | T112: 3.21 | U112: 6.31 | V112: 7.927554314 | W112: 1.027 | X112: =+(#REF!+100)/100 ->  | Y112: 1.0488 | Z112: 1.0321 | AA112: 1.0631
Q113: 2012-02-01 | R113: 2.74 | S113: 4.81 | T113: 3.24 | U113: 5.71 | V113: 6.909518354 | W113: 1.0274 | X113: =+(#REF!+100)/100 ->  | Y113: 1.0481 | Z113: 1.0324 | AA113: 1.0571
Q114: 2012-03-01 | R114: 2.36 | S114: 4.74 | T114: 3.41 | U114: 5.69 | V114: 7.064485892 | W114: 1.0236 | X114: =+(#REF!+100)/100 ->  | Y114: 1.0474 | Z114: 1.0341 | AA114: 1.0569
Q115: 2012-04-01 | R115: 1.77 | S115: 4.15 | T115: 3.18 | U115: 5.59 | V115: 6.825569933 | W115: 1.0177 | X115: =+(#REF!+100)/100 ->  | Y115: 1.0415 | Z115: 1.0318 | AA115: 1.0559
Q116: 2012-05-01 | R116: 1.53 | S116: 3.67 | T116: 2.88 | U116: 5.6 | V116: 6.826627916 | W116: 1.0153 | X116: =+(#REF!+100)/100 ->  | Y116: 1.0367 | Z116: 1.0288 | AA116: 1.056
Q117: 2012-06-01 | R117: 1.11 | S117: 2.69 | T117: 2.72 | U117: 3.79 | V117: 4.483791434 | W117: 1.0111 | X117: =+(#REF!+100)/100 ->  | Y117: 1.0269 | Z117: 1.0272 | AA117: 1.0379
Q118: 2012-07-01 | R118: 0.84 | S118: 2.15 | T118: 2.53 | U118: 3.74 | V118: 4.578780795 | W118: 1.0084 | X118: =+(#REF!+100)/100 ->  | Y118: 1.0215 | Z118: 1.0253 | AA118: 1.0374
Q119: 2012-08-01 | R119: 0.84 | S119: 1.94 | T119: 2.58 | U119: 2.95 | V119: 3.780169704 | W119: 1.0084 | X119: =+(#REF!+100)/100 ->  | Y119: 1.0194 | Z119: 1.0258 | AA119: 1.0295
Q120: 2012-09-01 | R120: 0.54 | S120: 1.4 | T120: 2.02 | U120: 2.8 | V120: 3.665342363 | W120: 1.0054 | X120: =+(#REF!+100)/100 ->  | Y120: 1.014 | Z120: 1.0202 | AA120: 1.028
Q121: 2012-10-01 | R121: 0.47 | S121: 1.11 | T121: 2.04 | U121: 2.63 | V121: 3.360665166 | W121: 1.0047 | X121: =+(#REF!+100)/100 ->  | Y121: 1.0111 | Z121: 1.0204 | AA121: 1.0263
Q122: 2012-11-01 | R122: 0.23 | S122: 0.56 | T122: 1.89 | U122: 2 | V122: 2.771583636 | W122: 1.0023 | X122: =+(#REF!+100)/100 ->  | Y122: =+(S122+100)/100 -> 1.0056 | Z122: =+(T122+100)/100 -> 1.0189 | AA122: =+(U122+100)/100 -> 1.02
Q123: 2012-12-01 | R123: 0.11 | S123: 0.02 | T123: 1.71 | U123: 1.5 | V123: 2.198199553 | W123: 1.0011 | X123: =+(#REF!+100)/100 ->  | Y123: =+(S123+100)/100 -> 1.0002 | Z123: 1.0171 | AA123: 1.015
Q124: 2013-01-01 | R124: 0.1 | S124: -0.19 | T124: 1.79 | U124: 1.5 | V124: 2.198199553 | W124: 1.001 | X124: =+(#REF!+100)/100 ->  | Y124: 0.9981 | Z124: 1.0179 | AA124: 1.015
Q125: 2013-02-01 | R125: -0.11 | S125: -0.53 | T125: 1.56 | U125: 1.53 | V125: 2.28107979 | W125: 0.9989 | X125: =+(#REF!+100)/100 ->  | Y125: 0.9947 | Z125: 1.0156 | AA125: 1.0153
Q126: 2013-03-01 | R126: -0.11 | S126: -0.5 | T126: 1.58 | U126: 1.78 | V126: 2.481982542 | W126: 0.9989 | X126: =+(#REF!+100)/100 ->  | Y126: =+(S126+100)/100 -> 0.995 | Z126: 1.0158 | AA126: 1.0178
Q127: 2013-04-01 | R127: -0.42 | S127: -0.54 | T127: 1.45 | U127: 1.99 | V127: 2.800690439 | W127: 0.9958 | X127: =+(#REF!+100)/100 ->  | Y127: 0.9946 | Z127: 1.0145 | AA127: 1.0199
Q128: 2013-05-01 | R128: -0.53 | S128: -0.62 | T128: 1.1 | U128: 2.33 | V128: 3.050478703 | W128: 0.9947 | X128: 0.9909 | Y128: 0.9938 | Z128: 1.011 | AA128: 1.0233
Q129: 2013-06-01 | R129: -0.57 | S129: -0.61 | T129: 1.35 | U129: 2.29 | V129: 3.094920635 | W129: 0.9947 | X129: 0.9909 | Y129: 0.9938 | Z129: 1.011 | AA129: 1.0278
Q130: 2013-07-01 | R130: -0.72 | S130: -0.6 | T130: 1.51 | U130: 2.37 | V130: 3.44306403 | W130: 0.9947 | X130: 0.9909 | Y130: 0.9938 | Z130: 1.011 | AA130: 1.0278
Q131: 2013-08-01 | R131: -0.77 | S131: -0.6 | T131: 1.58 | U131: 2.6 | V131: 3.281106236 | W131: 0.9947 | X131: 0.9909 | Y131: 0.9938 | Z131: 1.011 | AA131: 1.0278
Q132: 2013-09-01 | R132: -0.88 | S132: -0.63 | T132: 1.8 | U132: 2.34 | V132: 3.246252651 | W132: 0.9947 | X132: 0.9909 | Y132: 0.9938 | Z132: 1.011 | AA132: 1.0278
Q133: 2013-10-01 | R133: -1.04 | S133: -0.61 | T133: 1.85 | U133: 2.59 | V133: 3.424057284 | W133: 0.9947 | X133: 0.9909 | Y133: 0.9938 | Z133: 1.011 | AA133: 1.0278
Q134: 2013-11-01 | R134: -1.08 | S134: -0.41 | T134: 1.92 | U134: 2.19 | V134: 3.108403323 | W134: 0.9947 | X134: 0.9909 | Y134: 0.9938 | Z134: 1.011 | AA134: 1.0278
Q135: 2013-12-01 | R135: -1.13 | S135: -0.06 | T135: 2 | U135: 0.72 | V135: 1.466948662 | W135: 0.9947 | X135: 0.9909 | Y135: 0.9938 | Z135: 1.011 | AA135: 1.0278
Q136: 2014-01-01 | R136: -1.18 | S136: 0.08 | T136: 1.69 | U136: -0.3 | V136: 0.3911500233 | W136: 0.9947 | X136: 0.9909 | Y136: 0.9938 | Z136: 1.011 | AA136: 1.0278
Q137: 2014-02-01 | R137: -1.28 | S137: 0.12 | T137: 1.44 | U137: -0.87 | V137: 0.0002358992551 | W137: 0.9947 | X137: 0.9909 | Y137: 0.9938 | Z137: 1.011 | AA137: 1.0278
Q138: *Les chiffres de décembre sont estimés par interpolation linéaire
R141: =POWER(+W64*W52*W40*W28*W16*W6,1/6) -> 1.009132228 | S141: =POWER(+Y64*Y52*Y40*Y28*Y16*Y6,1/6) -> 0.9991445761 | T141: 0.9987621725 | U141: 1.000612969
R142: 1.010255022 | S142: 1.000503562 | T142: 0.9998494474 | U142: 1.003137561
R143: 1.01149297 | S143: 1.002302404 | T143: 1.001463036 | U143: 1.001904873
R144: 1.010515749 | S144: 1.001390847 | T144: 1.001792712 | U144: 1.001122029
R145: 1.010468445 | S145: 1.001757224 | T145: 1.002746891 | U145: 1.000635288
R146: 1.009893855 | S146: 1.002738409 | T146: 1.002909708 | U146: 1.000376688
R147: 1.009941377 | S147: 1.003316199 | T147: 1.003562872 | U147: 1.002933443
R148: 1.009686867 | S148: 1.004783866 | T148: 1.002400893 | U148: 1.003526765
R149: 1.008952559 | S149: =POWER(+Y72*Y60*Y48*Y36*Y24*Y14,1/6) -> 1.003619123 | T149: =POWER(+Z72*Z60*Z48*Z36*Z24*Z14,1/6) -> 1.003738518 | U149: =POWER(+AA72*AA60*AA48*AA36*AA24*AA12,1/6) -> 1.00160488
R150: =POWER(+W73*W61*W49*W37*W25*W12,1/6) -> 1.009625013 | S150: =POWER(+Y73*Y61*Y49*Y37*Y25*Y12,1/6) -> 1.00442393 | T150: 1.005240046 | U150: =POWER(+AA73*AA61*AA49*AA37*AA25*AA13,1/6) -> 1.003763552
R151: =POWER(+W74*W62*W50*W38*W26*W13,1/6) -> 1.009293784 | S151: 1.004058513 | T151: 1.003532773 | U151: =POWER(+AA74*AA62*AA50*AA38*AA26*AA14,1/6) -> 1.001034055
R152: =POWER(+W75*W63*W51*W39*W27*W15,1/6) -> 1.00911293 | S152: =POWER(+Y75*Y63*Y51*Y39*Y27*Y15,1/6) -> 1.003949008 | T152: =POWER(+Z75*Z63*Z51*Z39*Z27*Z15,1/6) -> 1.005843157 | U152: =POWER(+AA75*AA63*AA51*AA39*AA27*AA15,1/6) -> 1.001738585
R153: =POWER(+W76*W64*W52*W40*W28*W16*W6,1/7) -> 1.010691804 | S153: =POWER(+Y76*Y64*Y52*Y40*Y28*Y16*Y6,1/7) -> 1.002909661 | T153: =POWER(+Z76*Z64*Z52*Z40*Z28*Z16*Z6,1/7) -> 1.006158362 | U153: =POWER(+AA76*AA64*AA52*AA40*AA28*AA16*AA6,1/7) -> 1.002951795
R154: 1.010988419 | S154: 1.003139274 | T154: 1.005847632 | U154: 1.004512245
R155: 1.011693854 | S155: 1.004572295 | T155: 1.006782787 | U155: 1.002830181
R156: 1.010499213 | S156: 1.003366141 | T156: 1.006317688 | U156: 1.003107035
R157: 1.010272839 | S157: 1.003199944 | T157: 1.006358085 | U157: 1.002561939
R158: 1.009637395 | S158: 1.003928675 | T158: 1.006372251 | U158: 1.001405411
R159: 1.009334372 | S159: 1.003741914 | T159: 1.006260608 | U159: 1.00364145
R160: 1.009044662 | S160: 1.004614657 | T160: 1.004727361 | U160: 1.003893967
R161: 1.008601828 | S161: 1.003373353 | T161: 1.005410353 | U161: 1.001399717
R162: 1.008494402 | S162: 1.003068052 | T162: 1.004304551 | U162: 1.002887509
R163: 1.008136018 | S163: 1.00204385 | T163: 1.004029955 | U163: 1.000641012
R164: 1.007722732 | S164: 1.001867936 | T164: 1.004350747 | U164: 1.002051506
R165: =POWER(+W88*W76*W64*W52*W40*W28*W16*W6,1/8) -> 1.00948782 | S165: =POWER(+Y88*Y76*Y64*Y52*Y40*Y28*Y16*Y6,1/8) -> 1.001362627 | T165: 1.005084564 | U165: 1.001563614
R166: 1.009822673 | S166: 1.001979684 | T166: 1.00493881 | U166: 1.002268247
R167: 1.01059042 | S167: 1.003282477 | T167: 1.005491658 | U167: 1.000533076
R168: 1.009407694 | S168: 1.002077092 | T168: 1.004453434 | U168: 1.000698512
R169: 1.009373437 | S169: 1.001780441 | T169: 1.004222531 | U169: 1.000311597
R170: 1.008377229 | S170: 1.002063 | T170: 1.003853771 | U170: 0.9992510828
R171: 1.007771634 | S171: 1.001456037 | T171: 1.003425226 | U171: 1.000731918
R172: =POWER(+W95*W83*W71*W59*W47*W35*W23*W12,1/8) -> 1.007299085 | S172: =POWER(+Y95*Y83*Y71*Y59*Y47*Y35*Y23*Y12,1/8) -> 1.002178266 | T172: =POWER(+Z95*Z83*Z71*Z59*Z47*Z35*Z23*Z12,1/8) -> 1.003999742 | U172: =POWER(+AA95*AA83*AA71*AA59*AA47*AA35*AA23*AA12,1/8) -> 1.000637574
R173: =POWER(+W96*W84*W72*W60*W48*W36*W24*W12,1/8) -> 1.006694731 | S173: =POWER(+Y96*Y84*Y72*Y60*Y48*Y36*Y24*Y12,1/8) -> 1.001016081 | T173: 1.003645314 | U173: 0.999000965
R174: =POWER(+W97*W85*W73*W61*W49*W37*W25*W13,1/8) -> 1.006249839 | S174: 1.000906627 | T174: 1.001046418 | U174: 1.00076642
R175: =POWER(+W98*W86*W74*W62*W50*W38*W26*W14,1/8) -> 1.00595112 | S175: 1.000144806 | T175: 1.001969997 | U175: 0.9992794188
R176: =POWER(+W99*W87*W75*W63*W51*W39*W27*W17,1/8) -> 1.00560437 | S176: =POWER(+Y99*Y87*Y75*Y63*Y51*Y39*Y27*Y17,1/8) -> 0.9996168204 | T176: =POWER(+Z99*Z87*Z75*Z63*Z51*Z39*Z27*Z17,1/8) -> 1.001694954 | U176: =POWER(+AA99*AA87*AA75*AA63*AA51*AA39*AA27*AA17,1/8) -> 1.001619416
R177: =POWER(+W100*W88*W76*W64*W52*W40*W28*W16*W6,1/9) -> 1.007371513 | S177: =POWER(+Y100*Y88*Y76*Y64*Y52*Y40*Y28*Y16*Y6,1/9) -> 0.9997790213 | T177: =POWER(+Z100*Z88*Z76*Z64*Z52*Z40*Z28*Z16*Z6,1/9) -> 1.002334142 | U177: =POWER(+AA100*AA88*AA76*AA64*AA52*AA40*AA28*AA16*AA6,1/9) -> 1.002662819
R178: =POWER(+W121*W109*W97*W85*W73,1/5) -> 1.012308276 | S178: =POWER(+Y121*Y109*Y97*Y85*Y73,1/5) -> 1.014873635 | T178: =POWER(+Z121*Z109*Z97*Z85*Z73,1/5) -> 1.020488365 | U178: =POWER(+AA121*AA109*AA97*AA85*AA73,1/5) -> 1.022141492
R179: =POWER(+W121*W109*W97*W85*W73*W61*W49*W37*W25*W13,1/10) -> 1.007796488 | S179: =POWER(+Y121*Y109*Y97*Y85*Y73*Y61*Y49*Y37*Y25*Y13,1/10) -> 1.005951092 | T179: =POWER(+Z121*Z109*Z97*Z85*Z73*Z61*Z49*Z37*Z25*Z13,1/10) -> 1.005359249 | U179: =POWER(+AA121*AA109*AA97*AA85*AA73*AA61*AA49*AA37*AA25*AA13,1/10) -> 1.009276482
R180: Exhaustifs | S180: MdD | T180: Premiers Prix | U180: Hard-Discounters
R181: =+R179-1 -> 0.007796487711 | S181: =+S179-1 -> 0.005951092281 | T181: =+T179-1 -> 0.00535924875 | U181: =+U179-1 -> 0.00927648204
R183: =+R178-1 -> 0.01230827599 | S183: =+S178-1 -> 0.01487363458 | T183: =+T178-1 -> 0.0204883655 | U183: =+U178-1 -> 0.02214149157

Sheet Circuits
A1: Observatoire des prix et des marges
A3: Produits de grande consommation – Grande distribution
O4: Hypers | P4: Supers | Q4: H.D. | R4: GMS
N5: Exhaustif | O5: =+O9 -> -1.43 | P5: =+O10 -> -0.94 | Q5: =+O11 -> -0.87 | R5: =+O12 -> -1.28
O8: Exha | P8: Mdd | Q8: PPx
N9: HM | O9: -1.43 | P9: -0.04 | Q9: 1.65
N10: SM | O10: -0.94 | P10: 0.4 | Q10: 1.18
N11: HD | O11: -0.87 | P11: 0.06 | Q11: -0.39
N12: TTMAG | O12: -1.28 | P12: 0.12 | Q12: 1.44

Sheet HistoriqCircuits
A1: Observatoire des prix et des marges | P1: Evolution de l'INFLATION ANNUELLE par TYPES de CIRCUITS
P2: pour les Produits PGC+PFLS en Exhaustif
A3: Produits de grande consommation – Grande distribution
P4: TOTAL GENERAL | R4: Hypers | S4: Supers | T4: Hard-Discount | U4: GMS
Q5: Janvier 2005 | R5: -0.012 | S5: -0.0068 | T5: -0.0163 | U5: -0.0101
Q6: Février 2005 | R6: -0.0129 | S6: -0.01 | T6: -0.0134 | U6: -0.0117
Q7: Mars 2005 | R7: -0.014 | S7: -0.0125 | T7: -0.0212 | U7: -0.0133
Q8: Avril 2005 | R8: -0.0146 | S8: -0.012 | T8: -0.016 | U8: -0.0134
Q9: Mai 2005 | R9: -0.0158 | S9: -0.0134 | T9: -0.0158 | U9: -0.0147
Q10: Juin 2005 | R10: -0.0165 | S10: -0.0136 | T10: -0.0153 | U10: -0.0152
Q11: Juillet 2005* | R11: -0.0121 | S11: -0.01176666667 | T11: -0.01526666667 | U11: -0.01193333333
Q12: Août 2005* | R12: -0.0077 | S12: -0.009933333333 | T12: -0.01523333333 | U12: -0.008666666667
Q13: Sept. 2005 | R13: -0.0033 | S13: -0.0081 | T13: -0.0152 | U13: -0.0054
Q14: Oct. 2005 | R14: -0.001 | S14: -0.0021 | T14: -0.0141 | U14: -0.0015
Q15: Nov. 2005 | R15: -0.0004 | S15: -0.0042 | T15: -0.0112 | U15: -0.0021
Q16: Déc.2005* | R16: 0.0021 | S16: -0.0027 | T16: -0.0093 | U16: -5e-05
Q17: Janvier 2006 | R17: 0.0046 | S17: -0.0012 | T17: -0.0074 | U17: 0.002
Q18: Février 2006 | R18: 0.0048 | S18: -0.0007 | T18: -0.004 | U18: 0.0024
Q19: Mars 2006 | R19: 0.0061 | S19: 0.0018 | T19: -0.0005 | U19: 0.0041
Q20: Avril 2006 | R20: 0.0054 | S20: 0.0022 | T20: -0.0016 | U20: 0.0039
Q21: Mai 2006 | R21: 0.0054 | S21: 0.0024 | T21: -0.0032 | U21: 0.0041
Q22: Juin 2006 | R22: 0.0032 | S22: 0.0005 | T22: -0.0068 | U22: 0.002
Q23: Juillet 2006 | R23: 0.00255 | S23: 0.005325 | T23: -0.0039 | U23: 0.003375
Q24: Août 2006 | R24: 0.0008 | S24: 0.0092 | T24: -0.0028 | U24: 0.0037
Q25: Sept. 2006 | R25: 0 | S25: 0.0022 | T25: -0.0031 | U25: 0.0009
Q26: Oct. 2006 | R26: -0.0007 | S26: 0.00048 | T26: 0.0005 | U26: 0.00015
Q27: Nov.2006 | R27: 0.0004 | S27: 0.0012 | T27: 0.00052 | U27: 0.0007
Q28: Déc.2006* | R28: -0.0017 | S28: 0.00145 | T28: 0.00166 | U28: -0.00045
Q29: Jan.2007 | R29: -0.0038 | S29: 0.0017 | T29: 0.0028 | U29: -0.0016
Q30: Fév. 2007 | R30: -0.0077 | S30: 0.0012 | T30: 0.0043 | U30: -0.0044
Q31: 2007-03-01 | R31: -0.0062 | S31: 0.0026 | T31: 0.005 | U31: -0.001
Q32: 2007-04-01 | R32: -0.0089 | S32: -0.0036 | T32: -0.0015 | U32: -0.0074
Q33: 2007-05-01 | R33: -0.0107 | S33: 0.0015 | T33: -0.0013 | U33: -0.0074
Q34: 2007-06-01 | R34: -0.0076 | S34: 0.0022 | T34: 0.0048 | U34: -0.0049
Q35: 2007-07-01 | R35: -0.0073 | S35: 0.0042 | T35: 0.0068 | U35: -0.0037
Q36: 2007-08-01 | R36: -0.0053 | S36: 0.0075 | T36: 0.0129 | U36: -0.0007
Q37: 2007-09-01 | R37: -0.0032 | S37: 0.0042 | T37: 0.0124 | U37: -0.0009
Q38: 2007-10-01 | R38: -0.001 | S38: 0.0044 | T38: 0.013 | U38: 0.0007
Q39: 2007-11-01 | R39: 0.0033 | S39: 0.0067 | T39: 0.0035 | U39: 0.0043
Q40: 2007-12-01 | R40: 0.0131 | S40: 0.0164 | T40: 0.0205 | U40: 0.0142
Q41: 2008-01-01 | R41: 0.0241 | S41: 0.0233 | T41: 0.0376 | U41: 0.0239
Q42: 2008-02-01 | R42: 0.0332 | S42: 0.0324 | T42: 0.04074762883 | U42: 0.033
Q43: 2008-03-01 | R43: 0.0344 | S43: 0.0388 | T43: 0.0382 | U43: 0.0355
Q44: 2008-04-01 | R44: 0.0353 | S44: 0.0413 | T44: 0.0377 | U44: 0.0367
Q45: 2008-05-01 | R45: 0.039 | S45: 0.0392 | T45: 0.0379 | U45: 0.0391
Q46: 2008-06-01 | R46: 0.0385 | S46: 0.0388 | T46: 0.038 | U46: 0.0386
Q47: 2008-07-01 | R47: 0.0401 | S47: 0.0414 | T47: 0.0496 | U47: 0.0404
Q48: 2008-08-01 | R48: 0.0393 | S48: 0.0434 | T48: 0.0431 | U48: 0.0403
Q49: 2008-09-01 | R49: 0.0394 | S49: 0.0463 | T49: 0.0348 | U49: 0.0412
Q50: 2008-10-01 | R50: 0.0386 | S50: 0.0457 | T50: 0.0405 | U50: 0.0404
Q51: 2008-11-01 | R51: 0.0377 | S51: 0.046 | T51: 0.0339 | U51: 0.0398
Q52: 2008-12-01 | R52: 0.0282 | S52: 0.0386 | T52: 0.0221 | U52: 0.0306
Q53: 2009-01-01 | R53: 0.018 | S53: 0.0269 | T53: 0.0171 | U53: 0.0201
Q54: 2009-02-01 | R54: 0.014 | S54: 0.0195 | T54: 0.0128 | U54: 0.0154
Q55: 2009-03-01 | R55: 0.0124 | S55: 0.0145 | T55: 0.0084 | U55: 0.0129
Q56: 2009-04-01 | R56: 0.0101 | S56: 0.011 | T56: 0.0151 | U56: 0.0104
Q57: 2009-05-01 | R57: 0.0089 | S57: 0.0098 | T57: 0.0142 | U57: 0.0091
Q58: 2009-06-01 | R58: 0.0079 | S58: 0.0087 | T58: 0.0076 | U58: 0.0081
Q59: 2009-07-01 | R59: 0.0048 | S59: 0.0087 | T59: 0.0079 | U59: 0.0057
Q60: 2009-08-01 | R60: 0.0057 | S60: 0.0039 | T60: 0.0061 | U60: 0.0057
Q61: 2009-09-01 | R61: 0.0074 | S61: 0.0038 | T61: 0.0031 | U61: 0.0065
Q62: 2009-10-01 | R62: 0.0051 | S62: 0.0002 | T62: 0.0038 | U62: 0.0039
Q63: 2009-11-01 | R63: 0.0039 | S63: -0.0027 | T63: -0.0003 | U63: 0.0022
Q64: 2009-12-01 | R64: 0.0025 | S64: -0.0057 | T64: 0.0014 | U64: 0.0006
Q65: 2010-01-01 | R65: 0.0025 | S65: -0.0031 | T65: -0.0081 | U65: 0.0011
Q66: 2010-02-01 | R66: 0.0029 | S66: -0.0018 | T66: -0.0133 | U66: 0.0017
Q67: 2010-03-01 | R67: 0.0035 | S67: 0.0012 | T67: -0.0154 | U67: 0.0029
Q68: 2010-04-01 | R68: 0.0033 | S68: 0.0033 | T68: -0.016 | U68: 0.0018
Q69: 2010-05-01 | R69: 0.0026 | S69: 0.0049 | T69: -0.0153 | U69: 0.0031
Q70: 2010-06-01 | R70: -0.0014 | S70: 0.0025 | T70: -0.0157 | U70: -0.0004
Q71: 2010-07-01 | R71: -0.0031 | S71: -0.003 | T71: -0.0194 | U71: -0.0031
Q72: 2010-08-01 | R72: -0.0065 | S72: -0.005 | T72: -0.0194 | U72: -0.0062
Q73: 2010-09-01 | R73: -0.0087 | S73: -0.0079 | T73: -0.0205 | U73: -0.0085
Q74: 2010-10-01 | R74: -0.0105 | S74: -0.0087 | T74: -0.02 | U74: -0.0101
Q75: 2010-11-01 | R75: -0.0099 | S75: -0.0086 | T75: -0.0116 | U75: -0.0096
Q76: 2010-12-01 | R76: -0.0097 | S76: -0.0073 | T76: -0.0014 | U76: -0.0091
Q77: 2011-01-01 | R77: -0.0093 | S77: -0.0098 | T77: 0.0115 | U77: -0.0094
Q78: 2011-02-01 | R78: -0.0108 | S78: -0.0088 | T78: 0.017 | U78: -0.0103
Q79: 2011-03-01 | R79: -0.0061 | S79: -0.0028 | T79: 0.0162 | U79: -0.0053
Q80: 2011-04-01 | R80: -0.0001 | S80: 0.002 | T80: 0.0203 | U80: 0.0004
Q81: 2011-05-01 | R81: 0.0056 | S81: 0.0076 | T81: 0.0329 | U81: 0.0061
Q82: 2011-06-01 | R82: 0.0137 | S82: 0.0166 | T82: 0.0391 | U82: 0.0145
Q83: 2011-07-01 | R83: 0.0168 | S83: 0.0234 | T83: 0.042175 | U83: 0.0184
Q84: 2011-08-01 | R84: 0.0182 | S84: 0.025 | T84: 0.04083125 | U84: 0.0198
Q85: 2011-09-01 | R85: 0.0193 | S85: 0.0276 | T85: 0.0602 | U85: 0.0213
Q86: 2011-10-01 | R86: 0.0217 | S86: 0.0284 | T86: 0.0621 | U86: 0.0234
Q87: 2011-11-01 | R87: 0.0238 | S87: 0.0313 | T87: 0.0639 | U87: 0.0257
Q88: 2011-12-01 | R88: 0.0245 | S88: 0.0325 | T88: 0.0676 | U88: 0.0265
Q89: 2012-01-01 | R89: 0.0253 | S89: 0.0332 | T89: 0.0631 | U89: 0.027
Q90: 2012-02-01 | R90: 0.0258 | S90: 0.0327 | T90: 0.0571 | U90: 0.0274
Q91: 2012-03-01 | R91: 0.0218 | S91: 0.0294 | T91: 0.0568 | U91: 0.0236
Q92: 2012-04-01 | R92: 0.0159 | S92: 0.0235 | T92: 0.056 | U92: 0.0177
Q93: 2012-05-01 | R93: 0.0133 | S93: 0.0215 | T93: 0.0519 | U93: 0.0153
Q94: 2012-06-01 | R94: 0.0098 | S94: 0.0153 | T94: 0.0379 | U94: 0.0111
Q95: 2012-07-01 | R95: 0.0063 | S95: 0.0116 | T95: 0.0372 | U95: 0.0084
Q96: 2012-08-01 | R96: 0.0071 | S96: 0.0103 | T96: 0.0295 | U96: 0.0084
Q97: 2012-09-01 | R97: 0.0047 | S97: 0.0063 | T97: 0.0279 | U97: 0.0054
Q98: 2012-10-01 | R98: 0.0035 | S98: 0.0065 | T98: 0.0263 | U98: 0.0047
Q99: 2012-11-01 | R99: 0.0011 | S99: 0.0042 | T99: 0.02 | U99: 0.0023
Q100: 2012-12-01 | R100: -0.0002 | S100: 0.0034 | T100: 0.0149 | U100: 0.0011
Q101: 2013-01-01 | R101: -0.0006 | S101: 0.0034 | T101: 0.0191 | U101: 0.001
Q102: 2013-02-01 | R102: -0.0025 | S102: 0.0012 | T102: 0.0151 | U102: -0.0011
Q103: 2013-03-01 | R103: -0.0029 | S103: 0.0019 | T103: 0.0175 | U103: -0.0011
Q104: 2013-04-01 | R104: -0.0066 | S104: 0 | T104: 0.0197 | U104: -0.0042
Q105: 2013-05-01 | R105: -0.0079 | S105: -0.0007 | T105: 0.0233 | U105: -0.0053
Q106: 2013-06-01 | R106: -0.0092 | S106: 0.0004 | T106: 0.0227 | U106: -0.0057
Q107: 2013-07-01 | R107: -0.0105 | S107: -0.0017 | T107: 0.0236 | U107: -0.0072
Q108: 2013-08-01 | R108: -0.0113 | S108: -0.0018 | T108: 0.0259 | U108: -0.0077
Q109: 2013-09-01 | R109: -0.0121 | S109: -0.0028 | T109: 0.0234 | U109: -0.0088
Q110: 2013-10-01 | R110: -0.0136 | S110: -0.005 | T110: 0.0259 | U110: -0.0104
Q111: 2013-11-01 | R111: -0.0135 | S111: -0.0061 | T111: 0.0219 | U111: -0.0108
Q112: 2013-12-01 | R112: -0.0137 | S112: -0.0066 | T112: 0.0072 | U112: -0.0113
Q113: 2014-01-01 | R113: -0.0137 | S113: -0.0083 | T113: -0.003 | U113: -0.0118
Q114: 2014-02-01 | R114: -0.0143 | S114: -0.0094 | T114: -0.0087 | U114: -0.0128
Q117: *Chiffres estimés par interpolation linéaire

Sheet Familles Plus
A1: Observatoire des prix et des marges
A3: Produits de grande consommation – Grande distribution | Q3: EXHAUSTIF | R3: MDD | S3: PPX
P5: Vin (Table et Pays) | Q5: 3.5 | R5: 3.55 | S5: 6.01
P6: Cidre, cider | Q6: 2.72 | R6: 6.42 | S6: 1
P7: Huile | Q7: 1.87 | R7: 1.35 | S7: 2.59
P8: Traitements, engrais plant | Q8: 1.82 | R8: 3.9 | S8: 6.46
P9: Fruits secs, pruneaux | Q9: 1.77 | R9: 2.31 | S9: 5.17
P10: Digestif,liqueur,eau de vie | Q10: 1.31 | R10: 1.9 | S10: 3.49
P11: Apéritifs alcoolisés | Q11: 1.31 | R11: 1.39 | S11: 2.09
F12: EXHAUSTIF | H12: MDD | J12: PPX | P12: Légumes secs et deshydratés | Q12: 1.25 | R12: 1.72 | S12: 8.13
B13: =+P5 -> Vin (Table et Pays) | F13: 3.5 | H13: 3.55 | J13: 6.01 | P13: Paté,rillet,sciss,foie gras | Q13: 1.15 | R13: 3.36 | S13: 0.89
B14: Cidre, cider | F14: 2.72 | H14: 6.42 | J14: 1 | P14: Viande,volaill,charcut surg | Q14: 1.08 | R14: 1.25 | S14: 2.44
B15: Huile | F15: 1.87 | H15: 1.35 | J15: 2.59
B16: Traitements, engrais plant | F16: 1.82 | H16: 3.9 | J16: 6.46
B17: Fruits secs, pruneaux | F17: 1.77 | H17: 2.31 | J17: 5.17
B18: Digestif,liqueur,eau de vie | F18: 1.31 | H18: 1.9 | J18: 3.49
B19: Apéritifs alcoolisés | F19: 1.31 | H19: 1.39 | J19: 2.09
B20: Légumes secs et deshydratés | F20: 1.25 | H20: 1.72 | J20: 8.13
B21: Paté,rillet,sciss,foie gras | F21: 1.15 | H21: 3.36 | J21: 0.89
B22: Viande,volaill,charcut surg | F22: 1.08 | H22: 1.25 | J22: 2.44
B24: Leaders : 7 000 produits détenus par + 40 % des magasins HM & SM en France.
B25: Plus Grandes Marques = "Majeurs": les références des marques majeures par catégories de produits.

Sheet Familles Moins
A1: Observatoire des prix et des marges
A3: Produits de grande consommation – Grande distribution | Q3: EXHAUSTIF | R3: MDD | S3: PPX
P5: Eaux | Q5: -4.55 | R5: -0.3 | S5: 0.82
P6: Cirage, entret,teintu cuir | Q6: -3.49 | R6: 1.34
P7: Panification industr fraIc | Q7: -3.49 | R7: -1.4 | S7: -0.04
P8: Aliments infantiles | Q8: -3.44 | R8: -4.04
P9: Petit électroménager | Q9: -3.32 | R9: -1.28 | S9: -1.02
P10: Soins corps, visage adu+bb | Q10: -3.22 | R10: -2.89 | S10: -2.11
P11: Protections incontinence adultes | Q11: -3.14 | R11: 0.55 | S11: -1.32
P12: Café torréfié | Q12: -3.1 | R12: -2.7 | S12: -1
P13: Produits diététiques | Q13: -2.84 | R13: -2.82 | S13: 6.03
F14: EXHAUSTIF | H14: MDD | J14: PPX | P14: Prod vaisselle main,machine | Q14: -2.67 | R14: -0.37 | S14: 4.27
B15: =+P5 -> Eaux | F15: -4.55 | H15: -0.3 | J15: 0.82
B16: Cirage, entret,teintu cuir | F16: -3.49 | H16: 1.34 | J16: 0
B17: Panification industr fraIc | F17: -3.49 | H17: -1.4 | J17: -0.04
B18: Aliments infantiles | F18: -3.44 | H18: -4.04 | J18: 0
B19: Petit électroménager | F19: -3.32 | H19: -1.28 | J19: -1.02
B20: Soins corps, visage adu+bb | F20: -3.22 | H20: -2.89 | J20: -2.11
B21: Protections incontinence adultes | F21: -3.14 | H21: 0.55 | J21: -1.32
B22: Café torréfié | F22: -3.1 | H22: -2.7 | J22: -1
B23: Produits diététiques | F23: -2.84 | H23: -2.82 | J23: 6.03
B24: Prod vaisselle main,machine | F24: -2.67 | H24: -0.37 | J24: 4.27

Sheet Familles HD
A1: Observatoire des prix et des marges
AA2: grprd | AB2: Fam/ray | AC2: Exhaustif | AD2: MP Hard-Discount
A3: Produits de grande consommation – Grande distribution | W3: EXHAUSTIF | X3: Marques Propres | AA3: FA00061 | AB3: Mouchoirs papier, lingettes | AC3: -13.43 | AD3: -14.32990276
V4: Huile moteur | W4: 10.61 | X4: 10.61 | AA4: FA00063 | AB4: Essuie tout | AC4: -9.51 | AD4: -7.88132948
V5: Cidre, cider | W5: 10.59 | X5: 22.62196319 | AA5: FA00016 | AB5: Aliments infantiles | AC5: -8.83 | AD5: -9.734564007
V6: Vin (Table et Pays) | W6: 9.83 | X6: 12.47817391 | AA6: FA00050 | AB6: Rasage, aprés rasage | AC6: -7.21 | AD6: -6.788047493
V7: Légumes secs et deshydratés | W7: 9.21 | X7: 8.12 | AA7: FA00321 | AB7: Protections incontinence adultes | AC7: -7.16
V8: FRUITS MER, POISSON NAT, PANES, GRENOUILLE ESCARGOT | W8: 5.3 | X8: 6.621786217 | AA8: FA00062 | AB8: Papier hygiénique | AC8: -6.51 | AD8: -7.9
V9: Bière, boisson base bière | W9: 5.23 | X9: 4.68175 | AA9: FA00058 | AB9: Hygiène fèminine | AC9: -5.54 | AD9: -5.950471429
V10: Entrée,pizza,fast food surg | W10: 5.02 | X10: 6.20998227 | AA10: FA00052 | AB10: Soins corps, visage adu+bb | AC10: -5.47 | AD10: -6.577609562
F11: EXHAUSTIF | H11: Marques Propres | O11: EXHAUSTIF | Q11: Marques Propres | V11: Viande,volaill,charcut surg | W11: 4.73 | X11: 5.12256 | AA11: FA00077 | AB11: Oeufs | AC11: -5.4 | AD11: -5.545470085
B12: =+V4 -> Huile moteur | F12: =+W4 -> 10.61 | H12: =+X4 -> 10.61 | K12: =+V20 -> Mouchoirs papier, lingettes | O12: =+W20 -> -13.43 | Q12: =+X20 -> -14.32990276 | V12: Sirop,concent,poudre boiss | W12: 4.37 | X12: 4.929065628 | AA12: FA00056 | AB12: Produits capillaires | AC12: -5.38 | AD12: -5.307142857
B13: Cidre, cider | F13: 10.59 | H13: 22.62196319 | K13: Essuie tout | O13: -9.51 | Q13: -7.88132948 | V13: Fruits au sirop, au jus | W13: 4.22 | X13: 4.742458809 | AA13: FA00030 | AB13: Café torréfié | AC13: -4.86 | AD13: -5.323692308
B14: Vin (Table et Pays) | F14: 9.83 | H14: 12.47817391 | K14: Aliments infantiles | O14: -8.83 | Q14: -9.734564007 | AA14: FA00057 | AB14: Parapharmacie | AC14: -4.74 | AD14: -4.34
B15: Légumes secs et deshydratés | F15: 9.21 | H15: 8.12 | K15: Rasage, aprés rasage | O15: -7.21 | Q15: -6.788047493 | AA15: FA00060 | AB15: Coton | AC15: -3.88 | AD15: -3.607408537
B16: Fruits mer, poisson nat, panes, grenouille escargot | F16: 5.3 | H16: 6.621786217 | K16: Protections incontinence adultes | O16: -7.16 | AA16: FA00054 | AB16: Savon, bain, douche adu+bb | AC16: -3.86 | AD16: -2.206805778
B17: Bière, boisson base bière | F17: 5.23 | H17: 4.68175 | K17: Papier hygiénique | O17: -6.51 | Q17: -7.9 | AA17: FA00038 | AB17: Eaux | AC17: -3.81 | AD17: -0.1654202899
B18: Entrée,pizza,fast food surg | F18: 5.02 | H18: 6.20998227 | K18: Hygiène fèminine | O18: -5.54 | Q18: -5.950471429 | AA18: FA00028 | AB18: Thés et infusions | AC18: -3.62 | AD18: -1.524435294
B19: Viande,volaill,charcut surg | F19: 4.73 | H19: 5.12256 | K19: Soins corps, visage adu+bb | O19: -5.47 | Q19: -6.577609562 | W19: EXHAUSTIF | X19: Marques Propres | AA19: FA00078 | AB19: Fromages | AC19: -3.08 | AD19: -2.680690335
B20: Sirop,concent,poudre boiss | F20: 4.37 | H20: 4.929065628 | K20: Oeufs | O20: -5.4 | Q20: -5.545470085 | V20: Mouchoirs papier, lingettes | W20: -13.43 | X20: -14.32990276 | AA20: FA00051 | AB20: Déodorant,parfum,edt adu+bb | AC20: -2.95 | AD20: 1.420274223
B21: Fruits au sirop, au jus | F21: 4.22 | H21: 4.742458809 | K21: Produits capillaires | O21: -5.38 | Q21: -5.307142857 | V21: Essuie tout | W21: -9.51 | X21: -7.88132948 | AA21: FA00069 | AB21: Insecticides | AC21: -2.86 | AD21: -6.380625
V22: Aliments infantiles | W22: -8.83 | X22: -9.734564007 | AA22: FA00029 | AB22: Chicorée,chic+caf,cafe solu | AC22: -2.54 | AD22: -2.779202899
B23: Marques Propres : marques MdD "Premium", "Cœur de Gamme" et "Premiers Prix" | K23: Marques Propres : marques MdD "Premium", "Cœur de Gamme" et "Premiers Prix" | V23: Rasage, aprés rasage | W23: -7.21 | X23: -6.788047493 | AA23: FA00067 | AB23: Emballage ménag,filtre café | AC23: -2.53 | AD23: -2.326737513
V24: Protections incontinence adultes | W24: -7.16 | X24: - | AA24: FA00064 | AB24: Prod vaisselle main,machine | AC24: -2.08 | AD24: -1.814652482
V25: Papier hygiénique | W25: -6.51 | X25: -7.9 | AA25: FA00037 | AB25: Chewing gum | AC25: -1.92 | AD25: 3.76
V26: Hygiène fèminine | W26: -5.54 | X26: -5.950471429 | AA26: FA00076 | AB26: Beurre,margarine,creme frai | AC26: -1.91 | AD26: -1.85975625
V27: Soins corps, visage adu+bb | W27: -5.47 | X27: -6.577609562 | AA27: FA00320 | AB27: Changes complets, couches,culottes absorbantes bebes | AC27: -1.91 | AD27: 1.855315315
V28: Oeufs | W28: -5.4 | X28: -5.545470085 | AA28: FA00023 | AB28: Panification sèche | AC28: -1.79 | AD28: -1.218175599
V29: Produits capillaires | W29: -5.38 | X29: -5.307142857 | AA29: FA00008 | AB29: Farines, farineux, semoules | AC29: -1.72 | AD29: -1.5076875
AA30: FA00071 | AB30: Lessives, savons de ménage | AC30: -1.67 | AD30: -0.6984251969
AA31: FA00055 | AB31: Hygiène dentaire | AC31: -1.62 | AD31: -1.541385042
AA32: FA00015 | AB32: Aliments chiens et chats | AC32: -1.57 | AD32: 0.08656692913
AA33: FA00049 | AB33: Apéritifs sans alcool | AC33: -1.57 | AD33: -3.826097561
AA34: FA00065 | AB34: Nettoyants ménager, débouch | AC34: -1.54 | AD34: -0.02250989011
AA35: FA00087 | AB35: Traiteur libre service | AC35: -1.54 | AD35: -1.717241379
AA36: FA00074 | AB36: Yaourt,dessert lac,froma bl | AC36: -1.51 | AD36: -1.009921788
AA37: FA00026 | AB37: Céréales | AC37: -1.48 | AD37: -0.4642877907
AA38: FA00034 | AB38: Chocolat en tablette | AC38: -1.38 | AD38: -1.512405567
AA39: FA00027 | AB39: Pate A tartiner | AC39: -1.33 | AD39: -1.45618705
AA40: FA00020 | AB40: Biscuits sucrés | AC40: -1.32 | AD40: -0.6321582337
AA41: FA00003 | AB41: Conserves de poissons | AC41: -1.21 | AD41: -0.8330567686
AA42: FA00084 | AB42: Surgelés sucrés | AC42: -1.18 | AD42: -0.273809197
AA43: FA00070 | AB43: Cirage, entret,teintu cuir | AC43: -1.14 | AD43: -1.79
AA44: FA00072 | AB44: Assouplissant, entret linge | AC44: -1.11 | AD44: 1.247364185
AA45: FA00075 | AB45: Lait | AC45: -1.08 | AD45: -1.377739602
AA46: FA00007 | AB46: Pates alimentaires | AC46: -1.05 | AD46: 0.5151187335
AA47: FA00004 | AB47: Légumes en conserve | AC47: -1.01 | AD47: -1.105258738
AA48: FA00022 | AB48: Produits apéritifs, chips | AC48: -0.79 | AD48: -0.172923272
AA49: FA00066 | AB49: Eponges, tampons A récurer | AC49: -0.79 | AD49: -0.2678637771
AA50: FA00091 | AB50: GANTS DE MENAGE JETABLES | AC50: -0.74 | AD50: -0.75
AA51: FA00013 | AB51: Sauces, prép condimentaires | AC51: -0.71 | AD51: -0.217804164
AA52: FA00021 | AB52: Patisserie industrielle | AC52: -0.59 | AD52: -0.3369426987
AA53: FA00035 | AB53: Confiserie de chocolat | AC53: -0.54 | AD53: 5.345611814
AA54: FA00011 | AB54: Vinaigre | AC54: -0.5 | AD54: -0.9561052632
AA55: FA00032 | AB55: Miel, confiture, compote | AC55: -0.48 | AD55: -0.1610576465
AA56: FA00088 | AB56: Panification industr fraIc | AC56: -0.46 | AD56: 0.5589751553
AA57: FA00019 | AB57: Aide patisserie, desserts | AC57: -0.24 | AD57: -0.2041002045
AA58: FA00085 | AB58: Saurisserie | AC58: -0.23 | AD58: -1.322526193
AA59: FA00073 | AB59: Charcuterie libre service | AC59: -0.22 | AD59: -0.518705999
AA60: FA00086 | AB60: Pates fraIches | AC60: -0.18 | AD60: 1.586781609
AA61: FA00025 | AB61: Poudres petits déjeuners | AC61: 0.07 | AD61: 1.711276596
AA62: FA00006 | AB62: Riz | AC62: 0.08 | AD62: 0.7039099859
AA63: FA00041 | AB63: Jus, nectar fruit,legume | AC63: 0.17 | AD63: 0.4023424044
AA64: FA00053 | AB64: Maquillage | AC64: 0.26 | AD64: 0
AA65: FA00080 | AB65: Plats cuisinés tt prêt surg | AC65: 0.58 | AD65: 1.427711951
AA66: FA00031 | AB66: Sucres et édulcorants | AC66: 0.61 | AD66: 1.28075
AA67: FA00048 | AB67: Apéritifs alcoolisés | AC67: 0.67 | AD67: 0.7073990307
AA68: FA00046 | AB68: Digestif,liqueur,eau de vie | AC68: 0.71 | AD68: 3.157862595
AA69: FA00001 | AB69: Plats cuisinés | AC69: 0.73 | AD69: 1.246017964
AA70: FA00014 | AB70: Légumes vinaig, huile, saum | AC70: 0.82 | AD70: 2.209112344
AA71: FA00024 | AB71: Lait poudre,concentré adult | AC71: 0.95 | AD71: 4.482676056
AA72: FA00036 | AB72: Confiserie de sucre | AC72: 1.14 | AD72: 2.759597958
AA73: FA00096 | AB73: LITIERES POUR ANIMAUX | AC73: 1.41 | AD73: 3.797560976
AA74: FA00040 | AB74: Boisson rafraich ss alcool | AC74: 1.53 | AD74: 4.220540243
AA75: FA00045 | AB75: Champagne, mousseux | AC75: 1.57 | AD75: 4.697634855
AA76: FA00047 | AB76: Whisky, bourbon | AC76: 1.96 | AD76: 0.7116304348
AA77: FA00009 | AB77: Potages,bouill,aide culinai | AC77: 2.28 | AD77: 4.448254717
AA78: FA00018 | AB78: Fruits secs, pruneaux | AC78: 2.53 | AD78: 2.585909091
AA79: FA00012 | AB79: Sel, poivre, épices, herbes | AC79: 2.94 | AD79: 4.808339882
AA80: FA00082 | AB80: Légumes surgelés | AC80: 3.05 | AD80: 3.169525011
AA81: FA00068 | AB81: Désodorisants d'intérieur | AC81: 3.37 | AD81: 4.545925926
AA82: FA00017 | AB82: Produits diététiques | AC82: 3.42 | AD82: 3.557608696
AA83: FA00010 | AB83: Huile | AC83: 3.76 | AD83: 5.000239521
AA84: FA00002 | AB84: Paté,rillet,sciss,foie gras | AC84: 4.18 | AD84: 4.034305556
AA85: FA00033 | AB85: Fruits au sirop, au jus | AC85: 4.22 | AD85: 4.742458809
AA86: FA00039 | AB86: Sirop,concent,poudre boiss | AC86: 4.37 | AD86: 4.929065628
AA87: FA00083 | AB87: Viande,volaill,charcut surg | AC87: 4.73 | AD87: 5.12256
AA88: FA00079 | AB88: Entrée,pizza,fast food surg | AC88: 5.02 | AD88: 6.20998227
AA89: FA00042 | AB89: Bière, boisson base bière | AC89: 5.23 | AD89: 4.68175
AA90: FA00081 | AB90: FRUITS MER, POISSON NAT, PANES, GRENOUILLE ESCARGOT | AC90: 5.3 | AD90: 6.621786217
AA91: FA00005 | AB91: Légumes secs et deshydratés | AC91: 9.21 | AD91: 8.12
AA92: FA00044 | AB92: Vin (Table et Pays) | AC92: 9.83 | AD92: 12.47817391
AA93: FA00043 | AB93: Cidre, cider | AC93: 10.59 | AD93: 22.62196319
AA94: FA00097 | AB94: Huile moteur | AC94: 10.61 | AD94: 10.61

Sheet Régions
A1: Observatoire des prix et des marges
A3: Produits de grande consommation – Grande distribution
A12: A0 | D12: Alsace | G12: -1.17
A13: A1 | D13: Aquitaine | G13: -0.88
A14: A2 | D14: Auvergne | G14: -1.61
A15: A3 | D15: Basse-Normandie | G15: -0.7
A16: A4 | D16: Bourgogne | G16: -1.73
A17: A5 | D17: Bretagne | G17: -1.31
A18: A6 | D18: Centre | G18: -0.8
A19: A7 | D19: Champagne-Ardenne | G19: -1.33
A20: CC | D20: Corse | G20: -1.19
A21: A9 | D21: Franche-Comté | G21: -1.88
A22: B0 | D22: Haute-Normandie | G22: -0.75
A23: B1 | D23: Île-de-France | G23: -1.01
A24: B2 | D24: Languedoc-Roussillon | G24: -2.18
A25: B3 | D25: Limousin | G25: -1.01
A26: B4 | D26: Lorraine | G26: -1.21
A27: B5 | D27: Midi-Pyrénées | G27: -1.6
A28: B6 | D28: Nord-Pas-de-Calais | G28: -1.05
A29: B7 | D29: Pays de la Loire | G29: -0.85
A30: B8 | D30: Picardie | G30: -1.41
A31: B9 | D31: Poitou-Charentes | G31: -1.31
A32: C0 | D32: Provence-Alpes-Côte d'Azur | G32: -2.07
D33: Rhône-Alpes | G33: -1.75
